bitfinex/quotes_ETHUSD_20250803
["timestamp","ask_amount","ask_price","bid_price","bid_amount"]
[1754253289549,8.86787,3495.7,3495.6,0.002]
[1754253290759,3.1432,3495.7,3495.6,0.4449]
[1754253292536,3.1432,3495.7,3495.6,0.8184]
[1754253293131,0.1432,3495.7,3495.6,0.8184]
[1754253293331,0.6167,3495.7,3495.6,0.002]
[1754253294436,1.0897,3495.7,3495.6,0.002]
[1754253294683,1.49877,3495.7,3495.6,0.002]
[1754253296648,1.02577,3495.7,3495.6,0.002]
[1754253297261,1.49877,3495.7,3495.6,0.002]
[1754253298369,1.02577,3495.7,3495.6,0.002]
[1754253298571,0.1432,3495.7,3495.6,0.4449]
[1754253299271,0.1432,3495.7,3495.6,0.8184]
[1754253299571,0.001,3495.8,3495.6,0.9616]
[1754253299776,0.001,3495.8,3495.7,0.8398]
[1754253304459,0.001,3495.8,3495.7,0.86840657]
[1754253304661,0.001,3495.8,3495.7,3.56686472]
[1754253305498,0.001,3495.8,3495.7,3.53825815]
[1754253305858,0.001,3495.8,3495.7,1.41840657]
[1754253306660,0.001,3495.8,3495.7,1.3898]
[1754253306863,0.001,3495.8,3495.7,1.41840657]
[1754253307258,0.001,3495.8,3495.7,1.3898]
[1754253309198,0.001,3495.8,3495.7,4.8653]
[1754253309595,0.4833,3495.8,3495.6,0.002]
[1754253309794,0.4823,3495.7,3495.6,0.002]
[1754253311325,0.001,3495.8,3495.6,0.002]
[1754253312801,0.4823,3495.7,3495.6,0.002]
[1754253313435,0.001,3495.8,3495.6,0.002]
[1754253314092,0.4823,3495.7,3495.6,0.002]
[1754253314813,0.001,3495.8,3495.6,0.002]
[1754253316339,0.001,3495.8,3495.7,0.4663]
[1754253317624,0.001,3495.8,3495.6,0.002]
[1754253319138,0.001,3495.8,3495.6,0.4683]
[1754253319495,0.001,3495.8,3495.7,0.4663]
[1754253319641,0.001,3495.8,3495.7,0.6095]
[1754253320010,0.001,3495.8,3495.7,0.983]
[1754253321752,0.001,3495.8,3495.7,0.1432]
[1754253322039,0.4833,3495.8,3495.7,0.1432]
[1754253322200,0.9419,3495.8,3495.6,0.002]
[1754253322404,0.4586,3495.7,3495.6,0.1452]
[1754253322604,0.4823,3495.7,3495.6,0.1452]
[1754253323331,0.9409,3495.7,3495.6,0.1452]
[1754253323628,0.001,3495.8,3495.6,0.1452]
[1754253323830,0.001,3495.8,3495.6,0.6115]
[1754253324914,0.001,3495.8,3495.7,0.6095]
[1754253326648,0.001,3495.8,3495.7,0.983]
[1754253327344,0.001,3495.8,3495.7,0.6095]
[1754253328340,0.001,3495.8,3495.7,0.1432]
[1754253330039,0.001,3495.8,3495.7,0.6158]
[1754253330352,0.4823,3495.8,3495.7,0.1432]
[1754253330918,0.4823,3495.8,3495.7,4.5402]
[1754253331555,0.001,3495.8,3495.7,4.5402]
[1754253332421,0.4823,3495.8,3495.7,4.5402]
[1754253335123,0.4823,3495.8,3495.6,0.002]
[1754253335124,0.9533,3495.8,3495.6,4.398]
[1754253335357,0.471,3495.7,3495.6,4.398]
[1754253335518,0.9523,3495.7,3495.6,4.398]
[1754253335722,0.4813,3495.7,3495.6,4.5412]
[1754253337135,0.001,3495.8,3495.6,5.0138]
[1754253337722,0.4823,3495.8,3495.6,4.5412]
[1754253338337,0.4813,3495.7,3495.6,4.5412]
[1754253342956,0.001,3495.8,3495.6,4.5412]
[1754253342957,0.001,3495.8,3495.6,5.0138]
[1754253343356,0.4823,3495.8,3495.6,4.5412]
[1754253343568,0.4813,3495.7,3495.6,4.5412]
[1754253345284,0.9523,3495.7,3495.6,4.398]
[1754253347486,0.9523,3495.7,3495.6,0.002]
[1754253347686,0.9523,3495.7,3495.6,4.397]
[1754253349595,0.4813,3495.7,3495.6,4.397]
[1754253350295,0.9523,3495.7,3495.6,4.396]
[1754253352497,0.4813,3495.7,3495.6,4.396]
[1754253354895,0.4823,3495.7,3495.6,4.396]
[1754253355900,0.9533,3495.7,3495.6,4.396]
[1754253356264,0.4823,3495.7,3495.6,4.396]
[1754253357498,1.0965,3495.7,3495.6,4.396]
[1754253359472,4.0965,3495.7,3495.6,0.002]
[1754253359671,6.96474707,3495.7,3495.6,0.002]
[1754253361081,1.0965,3495.7,3495.6,0.002]
[1754253364816,0.6338,3495.7,3495.6,0.002]
[1754253365103,1.0686,3495.7,3495.6,0.002]
[1754253365770,31.0686,3495.7,3495.6,0.002]
[1754253371006,34.0686,3495.7,3495.6,0.002]
[1754253371314,36.93684707,3495.7,3495.6,0.002]
[1754253371517,41.32984707,3495.7,3495.6,0.002]
[1754253377323,40.89504707,3495.7,3495.6,0.002]
[1754253377522,41.32984707,3495.7,3495.6,0.002]
[1754253377697,41.87984707,3495.7,3495.6,0.002]
[1754253382838,48.92984707,3495.7,3495.6,0.002]
[1754253387426,13.06244707,3495.7,3495.6,0.4577]
[1754253387626,14.5852,3495.7,3495.6,0.4577]
[1754253388532,7.051,3495.7,3495.6,0.4577]
[1754253388698,11.5852,3495.7,3495.6,0.8312]
[1754253389032,14.5852,3495.7,3495.6,0.8312]
[1754253390839,14.5852,3495.7,3495.6,0.4577]
[1754253391045,16.08956,3495.7,3495.6,0.4577]
[1754253391641,9.03956,3495.7,3495.6,0.4577]
[1754253392227,7.5352,3495.7,3495.6,0.8312]
[1754253393122,7.5342,3495.7,3495.6,0.8312]
[1754253393913,3.1442,3495.7,3495.6,0.4577]
[1754253394109,3.1442,3495.7,3495.6,0.8312]
[1754253396837,0.1442,3495.7,3495.6,0.8312]
[1754253397350,0.001,3495.7,3495.6,0.8312]
[1754253404249,0.001,3495.7,3495.6,0.4577]
[1754253412958,0.9137,3495.7,3495.6,0.002]
[1754253413162,1.0569,3495.7,3495.6,0.002]
[1754253413963,5.46269,3495.7,3495.6,0.002]
[1754253416152,35.46269,3495.7,3495.6,0.002]
[1754253425197,39.84769,3495.7,3495.6,0.002]
[1754253430009,39.39239,3495.7,3495.6,0.002]
[1754253431601,39.84099,3495.7,3495.6,0.002]
[1754253433888,39.39239,3495.7,3495.6,0.002]
[1754253434089,39.84099,3495.7,3495.6,0.002]
[1754253435417,40.80324753,3495.7,3495.6,0.002]
[1754253436399,41.08994753,3495.7,3495.6,0.002]
[1754253440825,3.55,3495.6,3495.3,0.002]
[1754253440992,59.61617221,3495.4,3495.3,0.002]
[1754253441333,49.75937221,3495.4,3495.3,0.002]
[1754253441524,50.66047221,3495.4,3495.3,0.002]
[1754253443800,3.55,3494.9,3492.3,4.383]
[1754253444008,33.0,3494.1,3493.2,0.4343]
[1754253444211,3.0,3493.9,3493.3,0.3735]
[1754253444428,4.383,3493.8,3493.3,0.3735]
[1754253444645,4.383,3493.7,3493.4,0.4343]
[1754253444820,4.383,3493.8,3493.4,0.4343]
[1754253445021,3.0,3494.1,3493.5,0.3735]
[1754253445213,0.1432,3493.6,3493.5,0.3735]
[1754253445733,0.1432,3493.6,3493.5,0.8078]
[1754253445930,13.0,3494.7,3493.5,0.8078]
[1754253446128,3.0,3494.5,3493.6,0.8078]
[1754253446328,3.0,3494.3,3493.7,0.8078]
[1754253446500,4.383,3494.3,3493.8,0.8078]
[1754253446700,0.1432,3494.0,3493.9,0.8078]
[1754253447033,0.1432,3494.0,3493.5,0.1432]
[1754253447531,0.1432,3494.0,3493.6,0.8078]
[1754253447723,0.1432,3494.0,3493.7,0.3735]
[1754253447920,0.1432,3494.0,3493.7,0.8078]
[1754253448121,0.1432,3494.0,3493.5,0.1432]
[1754253448435,0.1432,3494.0,3493.8,0.8078]
[1754253448637,0.1432,3494.0,3493.9,0.8078]
[1754253448800,3.0,3494.8,3493.9,0.8078]
[1754253449000,4.383,3494.8,3494.0,0.8399]
[1754253449201,0.1432,3494.5,3494.1,0.8399]
[1754253449398,0.1432,3494.5,3494.2,0.8399]
[1754253449643,0.1432,3494.5,3494.3,0.8399]
[1754253449839,0.1432,3494.5,3494.4,0.4664]
[1754253450043,7.05,3495.5,3494.4,0.8399]
[1754253450226,0.1432,3494.8,3494.5,0.3735]
[1754253450426,0.1432,3494.8,3494.5,0.8399]
[1754253450625,0.1432,3494.8,3494.3,0.1432]
[1754253450823,0.1432,3494.8,3494.6,0.8399]
[1754253451046,0.1432,3494.8,3494.3,0.1432]
[1754253451251,0.1432,3494.8,3494.7,0.8399]
[1754253456473,0.1432,3494.8,3494.7,0.4664]
[1754253457670,0.1432,3494.8,3494.3,0.1432]
[1754253457871,0.1432,3494.6,3494.4,0.4664]
[1754253458171,0.1432,3494.6,3494.5,0.4664]
[1754253458950,0.1432,3494.6,3494.5,0.8399]
[1754253461148,0.1432,3494.6,3494.5,0.8419]
[1754253463984,0.1432,3494.6,3494.5,0.4684]
[1754253467898,0.609,3494.6,3494.5,0.002]
[1754253468081,1.0445,3494.6,3494.5,0.002]
[1754253471457,1.44895,3494.6,3494.5,0.002]
[1754253471661,1.0445,3494.6,3494.5,0.002]
[1754253472764,0.609,3494.6,3494.5,0.002]
[1754253473529,3.0,3495.0,3494.5,0.002]
[1754253473680,0.1432,3494.6,3494.5,0.8419]
[1754253474078,0.1432,3494.9,3494.5,0.8419]
[1754253474303,0.1432,3494.9,3494.5,0.002]
[1754253474613,0.1432,3494.9,3494.6,0.8399]
[1754253474808,0.1432,3494.9,3494.5,0.002]
[1754253475013,0.1432,3494.9,3494.7,0.8399]
[1754253475191,0.1432,3494.9,3494.5,0.002]
[1754253475391,0.1432,3494.9,3494.8,0.4664]
[1754253475600,0.1432,3494.9,3494.8,0.8399]
[1754253478118,0.1432,3494.9,3494.8,0.4664]
[1754253478413,0.1432,3494.9,3494.8,0.8399]
[1754253480617,0.001,3495.7,3494.8,0.8399]
[1754253480790,0.001,3495.7,3494.9,0.87671312]
[1754253480994,0.1432,3495.6,3495.1,0.1432]
[1754253481197,0.1432,3495.6,3495.2,0.8481]
[1754253481506,0.1432,3495.6,3495.3,0.4746]
[1754253481706,0.6244,3495.6,3495.3,0.4746]
[1754253481931,0.6244,3495.6,3495.2,0.3735]
[1754253482232,0.6244,3495.6,3495.4,0.4746]
[1754253482429,0.6254,3495.6,3495.4,0.4746]
[1754253482722,0.6254,3495.6,3495.1,0.1432]
[1754253482723,0.1442,3495.6,3495.1,0.1432]
[1754253482894,0.001,3495.6,3495.5,0.4746]
[1754253486988,0.4822,3495.6,3495.1,0.1432]
[1754253487323,0.4822,3495.6,3495.2,0.4746]
[1754253487485,0.001,3495.6,3495.2,0.8481]
[1754253487689,0.001,3495.6,3495.3,0.4746]
[1754253488130,0.001,3495.6,3495.2,0.3735]
[1754253488289,0.001,3495.6,3495.4,0.4746]
[1754253489647,0.4822,3495.6,3495.4,0.4746]
[1754253489819,0.4812,3495.5,3495.1,0.1432]
[1754253490152,0.4812,3495.5,3495.2,0.4746]
[1754253491010,0.001,3495.6,3495.1,0.1432]
[1754253491341,0.1432,3495.3,3494.8,0.1432]
[1754253491523,0.4812,3495.2,3494.8,0.6178]
[1754253492346,0.4812,3495.2,3494.5,0.002]
[1754253492347,0.4812,3495.1,3494.5,0.002]
[1754253492528,0.1432,3494.8,3494.5,0.002]
[1754253493110,0.4812,3494.7,3494.5,0.002]
[1754253493539,0.1432,3494.8,3494.5,0.002]
[1754253493726,0.4812,3494.6,3494.5,0.002]
[1754253493931,0.1432,3494.8,3494.5,0.002]
[1754253494129,13.0,3495.5,3494.6,0.4746]
[1754253494130,3.46,3495.5,3494.6,0.4746]
[1754253494354,0.1432,3494.9,3494.6,0.4746]
[1754253494533,0.1432,3494.9,3494.5,0.3755]
[1754253494814,0.1432,3494.9,3494.7,0.4746]
[1754253495015,0.4812,3494.8,3494.5,0.002]
[1754253495210,0.4812,3494.8,3494.5,0.4766]
[1754253495448,0.4812,3494.7,3494.5,0.002]
[1754253496042,1.0844,3494.7,3494.5,0.002]
[1754253496450,0.4812,3494.6,3494.5,0.002]
[1754253499834,0.1432,3494.7,3494.5,0.002]
[1754253500025,0.1432,3494.7,3494.5,0.4766]
[1754253500555,0.4812,3494.6,3494.5,0.002]
[1754253501259,0.1432,3494.7,3494.5,0.002]
[1754253501260,0.1432,3494.7,3494.5,0.4766]
[1754253501426,0.1432,3494.7,3494.5,0.002]
[1754253501620,0.1432,3494.7,3494.6,0.8481]
[1754253502020,0.001,3495.6,3494.6,2.68578886]
[1754253502254,0.001,3495.6,3495.2,0.1432]
[1754253502442,0.001,3495.6,3495.3,0.02860984]
[1754253502642,0.001,3495.6,3495.5,0.1432]
[1754253503174,0.001,3495.6,3495.5,1.01990821]
[1754253503453,0.001,3495.6,3495.5,1.57096603]
[1754253505142,0.001,3495.6,3495.5,18.18713824]
[1754253505340,0.001,3495.6,3495.5,18.15853003]
[1754253506671,0.001,3495.6,3495.5,2.09235782]
[1754253506888,0.001,3495.6,3495.5,2.12096603]
[1754253507386,0.001,3495.6,3495.5,7.98178708]
[1754253507601,0.001,3495.6,3495.5,7.95317887]
[1754253509461,0.001,3495.6,3495.5,5.09235782]
[1754253509658,0.001,3495.6,3495.5,7.98178708]
[1754253509859,0.001,3495.6,3495.5,5.09235782]
[1754253510181,0.001,3495.6,3495.5,5.12096603]
[1754253510371,0.001,3495.6,3495.5,5.09235782]
[1754253510680,0.001,3495.6,3495.5,12.35478708]
[1754253510867,0.001,3495.6,3495.5,12.32617887]
[1754253511412,0.001,3496.0,3495.7,3.41065737]
[1754253511704,0.001,3496.1,3496.0,3.55]
[1754253511845,0.001,3496.9,3496.0,28.16836599]
[1754253512180,0.001,3496.9,3496.3,0.6932]
[1754253512354,0.001,3496.9,3496.5,3.41000286]
[1754253512549,0.001,3496.9,3496.5,5.0182918]
[1754253512766,0.001,3496.9,3496.5,5.9705928]
[1754253513102,0.001,3496.9,3496.5,5.94199278]
[1754253513408,0.001,3496.9,3496.5,8.94199278]
[1754253516288,0.001,3496.9,3496.8,6.40975749]
[1754253516500,0.001,3496.9,3496.8,11.73301525]
[1754253516682,0.001,3496.9,3496.8,12.57071525]
[1754253517560,0.001,3496.9,3496.8,12.7836288]
[1754253517755,0.001,3496.9,3496.8,8.5272078]
[1754253518100,0.001,3496.9,3496.8,12.8982078]
[1754253522965,0.001,3497.0,3496.9,6.40967571]
[1754253523305,0.001,3497.2,3496.9,7.23728943]
[1754253523466,0.001,3497.2,3497.1,6.40951216]
[1754253523669,0.001,3497.6,3497.5,6.40918513]
[1754253523983,0.001,3497.6,3497.5,10.77918513]
[1754253524171,0.001,3497.6,3497.5,11.76008513]
[1754253524371,0.001,3497.6,3497.5,13.19657405]
[1754253524681,0.4545,3498.8,3498.0,0.55]
[1754253524892,0.4545,3498.8,3498.2,3.55]
[1754253525067,0.4545,3498.8,3498.4,3.55]
[1754253525266,0.4545,3498.8,3498.5,4.39758367]
[1754253525515,0.4495,3499.2,3498.7,0.55]
[1754253525810,0.4545,3499.2,3498.9,0.55]
[1754253525996,0.4545,3499.2,3499.1,0.55]
[1754253526201,0.859002,3502.1,3499.1,0.55]
[1754253526202,0.859002,3502.1,3499.1,3.55]
[1754253526403,0.859002,3502.1,3498.9,2.85803857]
[1754253526404,0.4545,3499.5,3499.3,0.55]
[1754253526620,3.6873,3501.3,3499.5,0.55]
[1754253526827,0.4495,3500.0,3499.7,0.55]
[1754253527029,1.05603,3501.2,3499.9,0.55]
[1754253527183,0.904,3501.1,3500.1,0.55]
[1754253527378,0.904,3501.0,3500.2,4.369]
[1754253527619,0.2707158,3501.9,3500.3,0.55]
[1754253527784,0.904,3501.8,3500.4,4.369]
[1754253527986,3.0,3502.6,3500.5,4.368]
[1754253528209,0.904,3501.7,3500.5,4.368]
[1754253528522,0.904,3501.6,3500.6,4.368]
[1754253528683,20.07356188,3502.1,3500.7,4.368]
[1754253528684,0.904,3501.5,3500.7,4.368]
[1754253528887,0.904,3501.4,3499.7,7.423]
[1754253529089,0.904,3501.4,3499.8,4.918]
[1754253529324,0.904,3501.3,3500.1,0.858898]
[1754253529487,0.904,3501.3,3500.2,4.368]
[1754253529820,0.904,3501.2,3500.2,4.368]
[1754253530022,0.5578072,3501.7,3500.2,4.368]
[1754253530222,0.904,3501.1,3499.9,0.858899]
[1754253530402,0.904,3501.0,3500.0,4.368]
[1754253530722,0.904,3500.9,3500.0,4.368]
[1754253530931,0.904,3500.8,3500.0,4.368]
[1754253531090,0.5578072,3501.7,3500.0,4.368]
[1754253531292,0.904,3500.7,3500.0,4.368]
[1754253531503,0.904,3500.6,3500.0,4.368]
[1754253531726,0.904,3500.5,3499.7,7.731956]
[1754253532024,0.904,3500.4,3499.8,4.367]
[1754253532220,3.0,3501.6,3499.8,5.5768956]
[1754253532535,0.904,3500.3,3499.5,4.367]
[1754253532686,0.55,3501.3,3499.6,4.367]
[1754253532881,0.904,3500.2,3498.8,0.85913]
[1754253533106,0.904,3500.1,3498.3,0.4642]
[1754253533315,0.4495,3500.0,3498.5,1.02435]
[1754253533482,0.904,3500.0,3498.7,0.859154]
[1754253533702,0.904,3499.9,3498.8,0.4883504]
[1754253533904,0.904,3499.8,3498.9,4.367]
[1754253534105,0.904,3499.7,3498.9,4.367]
[1754253534306,0.904,3499.6,3498.9,4.367]
[1754253534531,0.904,3499.5,3499.0,4.367]
[1754253534748,0.904,3499.4,3499.2,0.1432]
[1754253535108,0.1432,3499.7,3499.2,0.1432]
[1754253535309,0.904,3499.3,3499.2,0.1432]
[1754253536631,0.904,3499.3,3498.9,0.1432]
[1754253536821,0.904,3499.2,3498.9,4.5102]
[1754253537018,0.904,3499.1,3498.9,0.1432]
[1754253537257,0.904,3499.0,3498.9,0.1432]
[1754253540512,0.854,3499.0,3498.9,0.1432]
[1754253540838,0.4545,3499.0,3498.9,0.1432]
[1754253543365,0.4612,3499.0,3498.9,0.1432]
[1754253543537,0.4612,3499.3,3498.9,1.03732]
[1754253543744,0.4612,3499.2,3498.9,0.4431]
[1754253543949,0.5711,3499.7,3499.2,0.1432]
[1754253544150,0.4279,3499.6,3499.2,0.1432]
[1754253544449,0.8891,3499.6,3499.2,0.1432]
[1754253544651,0.4279,3499.5,3498.9,0.4431]
[1754253544888,0.8891,3499.5,3499.2,0.1432]
[1754253545049,0.4279,3499.4,3499.2,0.1432]
[1754253545413,0.8891,3499.3,3499.2,0.1432]
[1754253546654,0.4612,3499.3,3499.2,0.1432]
[1754253547355,0.1432,3499.7,3499.2,0.1432]
[1754253547356,0.4612,3499.5,3499.2,0.1432]
[1754253547715,0.4612,3499.4,3499.2,0.1432]
[1754253547929,0.1432,3499.7,3499.2,0.1432]
[1754253548129,0.4612,3499.3,3499.2,0.1432]
[1754253556071,0.8891,3499.3,3497.9,0.4431]
[1754253556362,3.0,3499.5,3497.9,0.4431]
[1754253556363,1.27801,3499.2,3498.3,4.366]
[1754253556864,0.8891,3499.1,3497.9,0.4431]
[1754253557067,0.8891,3499.0,3498.3,4.366]
[1754253557252,1.37263261,3499.0,3498.3,4.366]
[1754253557562,16.42397397,3499.2,3498.3,4.366]
[1754253557563,0.8891,3498.9,3498.3,4.366]
[1754253557763,0.4279,3498.9,3498.3,4.366]
[1754253557961,0.4612,3498.8,3498.3,4.366]
[1754253558130,0.4612,3498.8,3498.3,4.39458531]
[1754253558329,0.4612,3498.8,3498.3,4.83768531]
[1754253558562,0.4612,3498.7,3498.3,4.8091]
[1754253558738,0.4612,3498.7,3498.3,5.97701]
[1754253558933,0.4612,3498.6,3498.3,5.97701]
[1754253559134,3.0,3500.1,3498.3,5.97701]
[1754253559363,0.8891,3499.9,3498.4,0.4431]
[1754253559565,0.8891,3499.8,3498.4,0.4431]
[1754253559732,0.20230171,3499.7,3498.4,1.765151]
[1754253560054,0.20230171,3499.7,3498.3,4.366]
[1754253560055,0.8891,3499.6,3498.3,4.366]
[1754253560257,0.8891,3499.5,3497.8,0.4431]
[1754253560459,0.8891,3499.4,3498.3,4.366]
[1754253560630,0.4612,3499.3,3498.3,4.366]
[1754253560830,0.8891,3499.3,3497.6,0.55]
[1754253561041,3.0,3499.5,3497.8,3.0]
[1754253561272,0.8891,3499.2,3497.8,3.0]
[1754253561568,0.8891,3499.1,3497.8,3.0]
[1754253561754,0.8891,3499.0,3497.9,1.24259036]
[1754253562070,0.8891,3498.9,3497.9,1.24259036]
[1754253562240,0.4612,3498.8,3497.9,1.24259036]
[1754253562570,0.4279,3498.7,3498.0,4.366]
[1754253562792,0.4279,3498.7,3498.0,5.02709939]
[1754253562961,0.4612,3498.6,3498.0,5.02709939]
[1754253564980,0.4612,3498.6,3497.7,1.07200359]
[1754253565277,0.4279,3498.5,3498.1,4.366]
[1754253565469,0.55,3499.3,3498.1,4.366]
[1754253565668,0.8891,3498.4,3498.1,4.366]
[1754253565862,0.4279,3498.4,3498.1,4.366]
[1754253566092,0.6044,3498.3,3498.1,4.366]
[1754253566394,0.4612,3498.2,3498.1,4.366]
[1754253566687,0.1432,3498.3,3498.1,4.366]
[1754253566889,0.1432,3498.3,3498.1,4.8091]
[1754253567412,0.6044,3498.3,3498.1,4.8091]
[1754253567753,0.4279,3498.9,3498.1,4.8091]
[1754253567958,0.6044,3498.5,3498.1,4.8091]
[1754253568152,0.1432,3498.5,3498.1,4.8091]
[1754253568356,0.4612,3498.4,3498.1,4.8091]
[1754253572364,0.1432,3498.5,3498.2,0.4522]
[1754253572675,0.6324,3498.5,3498.3,0.4522]
[1754253574293,0.1432,3498.5,3498.1,4.366]
[1754253574591,0.1432,3498.5,3498.2,0.4522]
[1754253574797,0.4892,3498.4,3498.2,0.4522]
[1754253575810,0.1432,3498.5,3498.2,0.4522]
[1754253575976,0.4892,3498.8,3498.3,0.4522]
[1754253576162,0.4892,3498.7,3498.4,0.5954]
[1754253576367,0.4892,3498.6,3498.4,0.5954]
[1754253576786,0.1432,3498.9,3498.4,0.1432]
[1754253576991,0.6324,3498.5,3498.1,4.366]
[1754253577295,0.6324,3498.5,3498.2,0.4522]
[1754253577502,0.6324,3498.5,3498.1,4.366]
[1754253577662,0.6324,3498.5,3498.2,0.4522]
[1754253577862,0.6324,3498.5,3498.1,4.366]
[1754253578105,0.6324,3498.5,3498.2,0.4522]
[1754253578494,0.6324,3498.5,3498.3,0.4522]
[1754253582309,0.1432,3498.5,3498.1,4.366]
[1754253582603,0.4892,3498.4,3498.1,4.8182]
[1754253582766,0.4892,3498.3,3498.1,4.8182]
[1754253583416,0.1432,3498.5,3498.1,4.366]
[1754253583619,0.4892,3498.4,3498.1,4.8182]
[1754253584503,0.4892,3498.4,3498.2,0.4522]
[1754253585993,0.4892,3498.3,3498.2,0.4522]
[1754253586381,0.4892,3498.3,3498.1,4.366]
[1754253586588,0.4892,3498.3,3498.1,4.8182]
[1754253589468,0.4892,3498.3,3498.1,0.4522]
[1754253589671,16.18811993,3498.5,3498.0,0.1452]
[1754253589876,16.18811993,3498.5,3498.0,4.367]
[1754253589877,0.1432,3498.1,3498.0,4.367]
[1754253590309,1.0876,3498.1,3498.0,4.367]
[1754253591828,0.1432,3498.1,3498.0,4.367]
[1754253592122,0.4892,3498.1,3498.0,4.367]
[1754253600892,0.1432,3498.3,3498.0,4.367]
[1754253601094,0.1432,3498.3,3498.1,0.4284]
[1754253601304,0.1432,3498.3,3498.2,0.4284]
[1754253601661,0.1432,3498.5,3498.2,0.4284]
[1754253601958,0.1432,3498.8,3498.3,4.7385]
[1754253602137,0.1432,3498.8,3498.4,0.4284]
[1754253602323,0.4571,3499.0,3498.4,0.8019]
[1754253602506,0.5003,3499.0,3498.5,0.5716]
[1754253602709,0.001,3499.4,3498.5,0.5716]
[1754253602710,0.001,3499.4,3498.6,5.29238286]
[1754253602942,0.1442,3499.2,3498.7,0.1432]
[1754253603106,0.001,3499.2,3498.9,0.1432]
[1754253603313,0.001,3499.2,3499.0,5.2638]
[1754253603538,0.001,3499.2,3499.1,0.02857877]
[1754253603867,0.001,3499.2,3499.1,1.07057877]
[1754253604523,0.001,3499.2,3499.1,1.62057877]
[1754253604920,0.001,3499.2,3499.1,4.62057877]
[1754253605134,0.001,3499.2,3499.1,4.592]
[1754253605338,0.001,3499.2,3499.1,10.05391147]
[1754253605636,0.001,3499.2,3499.1,10.0253327]
[1754253606249,0.001,3499.6,3499.4,0.55]
[1754253606415,0.001,3499.6,3499.5,26.84504651]
[1754253606615,0.001,3499.6,3499.5,29.83745214]
[1754253606815,1.36787888,3501.2,3500.4,0.55]
[1754253607067,1.36787888,3501.2,3500.5,5.29136734]
[1754253607215,1.36787888,3501.2,3501.1,0.6932]
[1754253607417,1.36787888,3501.2,3501.1,5.0572]
[1754253607638,1.36787888,3501.2,3501.1,6.46172]
[1754253608114,1.36787888,3501.2,3501.1,2.09772]
[1754253608332,1.36787888,3501.2,3501.1,8.956]
[1754253608849,0.4561,3502.5,3501.3,0.55]
[1754253609050,0.4561,3502.5,3501.5,0.55]
[1754253609215,0.4561,3502.5,3501.7,0.55]
[1754253609537,0.4561,3502.8,3502.4,0.1424]
[1754253609737,0.4561,3502.7,3502.5,4.363]
[1754253610041,0.4561,3502.9,3502.5,4.363]
[1754253610245,3.0,3503.9,3502.6,1.00695021]
[1754253610246,0.4561,3503.9,3502.6,1.00695021]
[1754253610444,0.4561,3503.6,3502.6,0.57855021]
[1754253610642,0.4561,3503.6,3502.7,4.365]
[1754253610842,0.4561,3503.6,3502.9,0.55]
[1754253610843,0.4421,3503.5,3502.9,0.55]
[1754253611021,0.4561,3503.6,3503.0,0.52290181]
[1754253611223,0.4561,3503.6,3503.1,4.366]
[1754253611457,0.4561,3503.5,3503.3,0.1424]
[1754253611663,0.4421,3503.8,3503.3,0.1424]
[1754253611813,0.38642419,3504.0,3503.3,0.1424]
[1754253611814,0.4561,3503.4,3503.3,0.1424]
[1754253612010,0.4561,3503.4,3503.1,4.366]
[1754253612251,0.4561,3503.4,3502.8,0.4284]
[1754253612252,0.4561,3503.4,3503.3,0.1424]
[1754253612415,0.4561,3503.7,3503.3,0.1424]
[1754253612612,1.7816311,3504.2,3503.4,0.9273437]
[1754253612828,1.3255311,3504.2,3503.6,0.1424]
[1754253613041,0.4561,3504.1,3504.0,0.1424]
[1754253613231,1.3255311,3504.2,3503.7,4.366]
[1754253613429,1.3255311,3504.2,3504.1,0.1424]
[1754253613716,1.50369421,3504.2,3504.1,0.1424]
[1754253614055,1.64609421,3504.2,3503.5,4.37]
[1754253614360,0.8982,3504.1,3502.4,0.4284]
[1754253614519,0.1424,3503.4,3502.9,0.1424]
[1754253614713,0.8982,3503.3,3502.9,0.1424]
[1754253614979,0.8982,3503.2,3502.9,4.37]
[1754253615267,0.24018942,3504.0,3502.7,4.369]
[1754253615268,1.0406,3503.1,3502.7,4.369]
[1754253615421,0.8982,3503.0,3502.8,4.371]
[1754253615614,0.8982,3503.0,3502.6,0.1424]
[1754253615615,0.8982,3502.9,3502.6,0.1424]
[1754253615832,0.4561,3502.8,3502.6,0.1424]
[1754253616017,0.4561,3502.8,3502.7,4.37]
[1754253616735,0.1424,3503.1,3502.7,4.37]
[1754253617136,0.4561,3503.0,3502.7,4.37]
[1754253617337,0.1424,3503.1,3502.7,4.37]
[1754253617552,0.1424,3503.1,3502.7,4.7984]
[1754253617935,0.1424,3503.1,3502.7,4.37]
[1754253618137,0.4421,3503.0,3502.8,0.1424]
[1754253618337,0.4561,3502.9,3502.8,0.1424]
[1754253619030,0.4561,3502.9,3502.8,4.37]
[1754253619230,0.8982,3502.9,3502.8,4.37]
[1754253619719,0.4561,3502.9,3502.8,4.37]